[Event "Live Chess"]
[Site "Chess.com"]
[Date "2023.05.20"]
[Round "-"]
[White "Conradical12"]
[Black "Pablo_dmp"]
[Result "1-0"]
[WhiteElo "1600"]
[BlackElo "1864"]
[TimeControl "300"]
[EndTime "14:51:16 PDT"]
[Termination "Conradical12 won on time"]

1. e4 {[%clk 0:04:56.1]} 1... c6 {[%clk 0:04:58.3]} 2. d4 {[%clk 0:04:54.6]}
2... d5 {[%clk 0:04:57.7]} 3. f3 {[%clk 0:04:54]} 3... e5 {[%clk 0:04:53.9]} 4.
dxe5 {[%clk 0:04:49.4]} 4... Qb6 {[%clk 0:04:47.3]} 5. Nc3 {[%clk 0:04:38.2]}
5... d4 {[%clk 0:04:42]} 6. Nce2 {[%clk 0:04:37.1]} 6... Bc5 {[%clk 0:04:32.9]}
7. Bg5 {[%clk 0:04:28.3]} 7... h6 {[%clk 0:04:28.9]} 8. Bh4 {[%clk 0:04:26.5]}
8... Nd7 {[%clk 0:04:25.4]} 9. c3 {[%clk 0:04:19.3]} 9... dxc3 {[%clk
0:04:19.7]} 10. Nxc3 {[%clk 0:04:15.8]} 10... Qxb2 {[%clk 0:04:11.5]} 11. Rc1
{[%clk 0:04:11.8]} 11... g5 {[%clk 0:04:06.2]} 12. Bg3 {[%clk 0:03:49.2]} 12...
Nxe5 {[%clk 0:03:53.6]} 13. Nge2 {[%clk 0:03:38.4]} 13... Nc4 {[%clk 0:03:47.1]}
14. Na4 {[%clk 0:03:26.1]} 14... Qb4+ {[%clk 0:03:42.1]} 15. Nac3 {[%clk
0:03:24.1]} 15... Be6 {[%clk 0:03:27.5]} 16. Nd4 {[%clk 0:03:20.6]} 16... Rd8
{[%clk 0:03:23.4]} 17. Bf2 {[%clk 0:03:07.5]} 17... Nb2 {[%clk 0:03:19.7]} 18.
Qd2 {[%clk 0:02:52.1]} 18... Bxd4 {[%clk 0:03:15.7]} 19. Bxd4 {[%clk 0:02:50.7]}
19... Rxd4 {[%clk 0:03:15.5]} 20. Qc2 {[%clk 0:02:43.9]} 20... Na4 {[%clk
0:02:58.9]} 21. a3 {[%clk 0:02:30.4]} 21... Qxc3+ {[%clk 0:02:57.3]} 22. Qxc3
{[%clk 0:02:29.4]} 22... Nxc3 {[%clk 0:02:57.2]} 23. Rxc3 {[%clk 0:02:28.7]}
23... Ne7 {[%clk 0:02:55.8]} 24. h4 {[%clk 0:02:24.6]} 24... g4 {[%clk
0:02:52.8]} 25. Re3 {[%clk 0:02:17.2]} 25... O-O {[%clk 0:02:48.7]} 26. f4
{[%clk 0:02:15.1]} 26... Bc4 {[%clk 0:02:44.4]} 27. Bxc4 {[%clk 0:02:12.8]}
27... Rxc4 {[%clk 0:02:44.3]} 28. f5 {[%clk 0:02:11.9]} 28... f6 {[%clk
0:02:40.7]} 29. O-O {[%clk 0:02:08.4]} 29... Rc5 {[%clk 0:02:35.7]} 30. Rg3
{[%clk 0:02:06.2]} 30... h5 {[%clk 0:02:35.4]} 31. Rd3 {[%clk 0:02:03.9]} 31...
Re5 {[%clk 0:02:27]} 32. Rd4 {[%clk 0:02:01]} 32... Kf7 {[%clk 0:02:24.9]} 33.
Rb1 {[%clk 0:01:55.3]} 33... b6 {[%clk 0:02:21.2]} 34. Rd7 {[%clk 0:01:46.5]}
34... Ra8 {[%clk 0:02:18.2]} 35. Re1 {[%clk 0:01:36.1]} 35... Ke8 {[%clk
0:02:13.4]} 36. Rb7 {[%clk 0:01:34.1]} 36... c5 {[%clk 0:02:08.4]} 37. Rd1
{[%clk 0:01:31.7]} 37... Rxe4 {[%clk 0:02:02.1]} 38. Rdd7 {[%clk 0:01:31.1]}
38... g3 {[%clk 0:02:00.5]} 39. Kf1 {[%clk 0:01:28.7]} 39... Nxf5 {[%clk
0:01:52.1]} 40. Rh7 {[%clk 0:01:26.5]} 40... Re7 {[%clk 0:01:09.5]} 41. Rh8+
{[%clk 0:01:20.4]} 41... Kf7 {[%clk 0:01:08.6]} 42. Rxe7+ {[%clk 0:01:19.4]}
42... Nxe7 {[%clk 0:01:07.4]} 43. Rxa8 {[%clk 0:01:18.6]} 43... Ke6 {[%clk
0:00:58.9]} 44. Rxa7 {[%clk 0:01:17.9]} 44... Nf5 {[%clk 0:00:57]} 45. Rb7
{[%clk 0:01:15.8]} 45... Kd5 {[%clk 0:00:51.3]} 46. Rxb6 {[%clk 0:01:14.3]}
46... Nxh4 {[%clk 0:00:50]} 47. Rxf6 {[%clk 0:01:13.1]} 47... c4 {[%clk
0:00:47.7]} 48. Rh6 {[%clk 0:01:07.1]} 48... Nf5 {[%clk 0:00:40.3]} 49. Rxh5
{[%clk 0:01:05.8]} 49... Ke4 {[%clk 0:00:39.2]} 50. Ke2 {[%clk 0:01:03.2]} 50...
Nd4+ {[%clk 0:00:36]} 51. Kd2 {[%clk 0:00:56.9]} 51... Nb3+ {[%clk 0:00:29.9]}
52. Kc3 {[%clk 0:00:53.8]} 52... Ke3 {[%clk 0:00:25.6]} 53. Kxc4 {[%clk
0:00:50.5]} 53... Nd2+ {[%clk 0:00:24.3]} 54. Kc3 {[%clk 0:00:47.9]} 54... Ne4+
{[%clk 0:00:22.6]} 55. Kc2 {[%clk 0:00:45.5]} 55... Kf2 {[%clk 0:00:21.4]} 56.
Re5 {[%clk 0:00:40.2]} 56... Nd6 {[%clk 0:00:17.3]} 57. Rd5 {[%clk 0:00:37.6]}
57... Ne4 {[%clk 0:00:14.2]} 58. Rd4 {[%clk 0:00:33.3]} 58... Nc5 {[%clk
0:00:10.6]} 59. Rd2+ {[%clk 0:00:31.4]} 59... Kg1 {[%clk 0:00:10.2]} 60. Kc3
{[%clk 0:00:29.6]} 60... Kh2 {[%clk 0:00:09.2]} 61. Kc4 {[%clk 0:00:27.4]} 61...
Ne4 {[%clk 0:00:08.2]} 62. Ra2 {[%clk 0:00:25.2]} 62... Nf2 {[%clk 0:00:07.8]}
63. a4 {[%clk 0:00:24]} 63... Kxg2 {[%clk 0:00:07.2]} 64. a5 {[%clk 0:00:21]}
64... Kf1 {[%clk 0:00:06.9]} 65. Ra1+ {[%clk 0:00:19.6]} 65... Kg2 {[%clk
0:00:04.8]} 66. a6 {[%clk 0:00:18.7]} 66... Ne4 {[%clk 0:00:03.2]} 67. a7 {[%clk
0:00:17.5]} 67... Nd6+ {[%clk 0:00:03.1]} 68. Kd5 {[%clk 0:00:12.3]} 68... Nb7
{[%clk 0:00:03]} 69. a8=Q {[%clk 0:00:10.5]} 69... Nd8 {[%clk 0:00:02.9]} 70.
Qa2+ {[%clk 0:00:09.2]} 70... Kh3 {[%clk 0:00:02.4]} 71. Rh1+ {[%clk 0:00:08.6]}
71... Kg4 {[%clk 0:00:02.3]} 72. Qc4+ {[%clk 0:00:07.3]} 72... Kf3 {[%clk
0:00:01.2]} 73. Qe4+ {[%clk 0:00:06.2]} 1-0

[Event "Live Chess"]
[Site "Chess.com"]
[Date "2023.05.20"]
[Round "-"]
[White "WelshTiger"]
[Black "JoeyCage"]
[Result "0-1"]
[WhiteElo "2389"]
[BlackElo "2306"]
[TimeControl "300"]
[EndTime "14:51:17 PDT"]
[Termination "JoeyCage won on time"]

1. e4 {[%clk 0:04:58.2]} 1... c5 {[%clk 0:04:57.5]} 2. Nf3 {[%clk 0:04:57.1]}
2... Nc6 {[%clk 0:04:54.9]} 3. Bb5 {[%clk 0:04:55.6]} 3... g6 {[%clk 0:04:53.7]}
4. O-O {[%clk 0:04:51.9]} 4... Bg7 {[%clk 0:04:52.5]} 5. c3 {[%clk 0:04:51.5]}
5... Nf6 {[%clk 0:04:51.3]} 6. Qa4 {[%clk 0:04:48.2]} 6... O-O {[%clk
0:04:49.4]} 7. d4 {[%clk 0:04:45.7]} 7... cxd4 {[%clk 0:04:47.8]} 8. cxd4 {[%clk
0:04:45.6]} 8... Nxe4 {[%clk 0:04:42.8]} 9. d5 {[%clk 0:04:44.6]} 9... Nc5
{[%clk 0:04:37.4]} 10. Qa3 {[%clk 0:04:43.9]} 10... Qb6 {[%clk 0:04:32.8]} 11.
Nc3 {[%clk 0:04:24.1]} 11... Ne5 {[%clk 0:04:26.8]} 12. Nxe5 {[%clk 0:04:19]}
12... Bxe5 {[%clk 0:04:25.2]} 13. Be3 {[%clk 0:04:17.6]} 13... d6 {[%clk
0:04:12.8]} 14. Be2 {[%clk 0:04:04.4]} 14... Qc7 {[%clk 0:04:03.5]} 15. Rac1
{[%clk 0:04:01.5]} 15... a6 {[%clk 0:03:59.6]} 16. Ne4 {[%clk 0:03:57.2]} 16...
Qd8 {[%clk 0:03:47.8]} 17. Nxc5 {[%clk 0:03:47.6]} 17... dxc5 {[%clk 0:03:45.9]}
18. Bxc5 {[%clk 0:03:35.9]} 18... Bd6 {[%clk 0:03:39]} 19. Bxd6 {[%clk
0:03:32.9]} 19... Qxd6 {[%clk 0:03:37.1]} 20. Qxd6 {[%clk 0:03:29.9]} 20... exd6
{[%clk 0:03:36.1]} 21. Rc7 {[%clk 0:03:29.7]} 21... b5 {[%clk 0:03:33.8]} 22.
Rfc1 {[%clk 0:03:22.1]} 22... Bf5 {[%clk 0:03:32]} 23. g4 {[%clk 0:03:15.7]}
23... Be4 {[%clk 0:03:30.1]} 24. Rd1 {[%clk 0:03:07.8]} 24... Rfc8 {[%clk
0:03:27.8]} 25. Rxc8+ {[%clk 0:02:59]} 25... Rxc8 {[%clk 0:03:25.9]} 26. f3
{[%clk 0:02:58.7]} 26... Rc2 {[%clk 0:03:17.9]} 27. Kf1 {[%clk 0:02:57.8]} 27...
Bxf3 {[%clk 0:03:08.7]} 28. Bxf3 {[%clk 0:02:56.6]} 28... Rxb2 {[%clk 0:03:06]}
29. Ra1 {[%clk 0:02:53.6]} 29... Rxh2 {[%clk 0:03:04.2]} 30. a4 {[%clk
0:02:50.3]} 30... b4 {[%clk 0:02:55.7]} 31. a5 {[%clk 0:02:49.7]} 31... b3
{[%clk 0:02:52.9]} 32. Bg2 {[%clk 0:02:34.7]} 32... Rh4 {[%clk 0:02:50.2]} 33.
Rb1 {[%clk 0:02:33.7]} 33... Rxg4 {[%clk 0:02:48.7]} 34. Rxb3 {[%clk 0:02:32.9]}
34... Ra4 {[%clk 0:02:47]} 35. Rb6 {[%clk 0:02:31.9]} 35... Rxa5 {[%clk
0:02:44.9]} 36. Rxd6 {[%clk 0:02:31.5]} 36... Kf8 {[%clk 0:02:43.2]} 37. Rb6
{[%clk 0:02:26.9]} 37... Ra4 {[%clk 0:02:34.5]} 38. d6 {[%clk 0:02:25.5]} 38...
Rd4 {[%clk 0:02:33.4]} 39. Rxa6 {[%clk 0:02:24]} 39... h5 {[%clk 0:02:30.5]} 40.
Kf2 {[%clk 0:02:22.8]} 40... g5 {[%clk 0:02:28.9]} 41. Ke3 {[%clk 0:02:22.2]}
41... Rd1 {[%clk 0:02:22.9]} 42. Bf3 {[%clk 0:02:21.3]} 42... Re1+ {[%clk
0:02:21]} 43. Kf2 {[%clk 0:02:20.1]} 43... Re5 {[%clk 0:02:10]} 44. Ra8+ {[%clk
0:02:17]} 44... Kg7 {[%clk 0:02:08.2]} 45. d7 {[%clk 0:02:16.6]} 45... g4 {[%clk
0:02:06.3]} 46. d8=Q {[%clk 0:02:14.5]} 46... gxf3 {[%clk 0:02:05.1]} 47. Qh8+
{[%clk 0:02:12.5]} 47... Kg6 {[%clk 0:01:15.8]} 48. Qxe5 {[%clk 0:02:12.4]}
48... f6 {[%clk 0:00:41.6]} 0-1

[Event "Live Chess"]
[Site "Chess.com"]
[Date "2023.05.20"]
[Round "-"]
[White "JackCheetham1"]
[Black "LiamClery2020"]
[Result "0-1"]
[WhiteElo "1695"]
[BlackElo "2077"]
[TimeControl "300"]
[EndTime "14:51:29 PDT"]
[Termination "LiamClery2020 won by checkmate"]

1. e4 {[%clk 0:04:57.8]} 1... Nf6 {[%clk 0:04:59.9]} 2. e5 {[%clk 0:04:56.7]}
2... Nd5 {[%clk 0:04:59.3]} 3. c4 {[%clk 0:04:56.3]} 3... Nb6 {[%clk 0:04:58.5]}
4. d4 {[%clk 0:04:55.8]} 4... d6 {[%clk 0:04:58]} 5. exd6 {[%clk 0:04:55.7]}
5... cxd6 {[%clk 0:04:57.8]} 6. Nf3 {[%clk 0:04:55]} 6... g6 {[%clk 0:04:57.5]}
7. Be2 {[%clk 0:04:54.3]} 7... Bg7 {[%clk 0:04:57.4]} 8. O-O {[%clk 0:04:53.7]}
8... O-O {[%clk 0:04:57.1]} 9. Nc3 {[%clk 0:04:52.9]} 9... Nc6 {[%clk
0:04:56.7]} 10. Be3 {[%clk 0:04:49.3]} 10... Bg4 {[%clk 0:04:56]} 11. b3 {[%clk
0:04:42.3]} 11... e5 {[%clk 0:04:53.2]} 12. Qd2 {[%clk 0:04:35.3]} 12... Bxf3
{[%clk 0:04:51.3]} 13. d5 {[%clk 0:04:12.4]} 13... Bxe2 {[%clk 0:04:49.8]} 14.
Qxe2 {[%clk 0:04:12]} 14... Nd4 {[%clk 0:04:48.6]} 15. Qd2 {[%clk 0:04:05.9]}
15... f5 {[%clk 0:04:44.5]} 16. Bg5 {[%clk 0:04:04]} 16... Bf6 {[%clk
0:04:43.4]} 17. Bh6 {[%clk 0:04:02.5]} 17... Bg7 {[%clk 0:04:42]} 18. Bg5 {[%clk
0:04:01.4]} 18... Qe8 {[%clk 0:04:39.2]} 19. Rfe1 {[%clk 0:03:55.7]} 19... Qf7
{[%clk 0:04:37]} 20. Be3 {[%clk 0:03:39.1]} 20... Rae8 {[%clk 0:04:33.6]} 21.
Rad1 {[%clk 0:03:36]} 21... Nd7 {[%clk 0:04:27]} 22. Bxd4 {[%clk 0:03:29.8]}
22... exd4 {[%clk 0:04:26.3]} 23. Nb5 {[%clk 0:03:29.3]} 23... Rxe1+ {[%clk
0:04:24.9]} 24. Rxe1 {[%clk 0:03:29.2]} 24... Be5 {[%clk 0:04:16.3]} 25. f4
{[%clk 0:03:25]} 25... Bg7 {[%clk 0:04:11.5]} 26. Nxd6 {[%clk 0:03:19.8]} 26...
Qf6 {[%clk 0:04:09.8]} 27. c5 {[%clk 0:03:15.2]} 27... Nxc5 {[%clk 0:04:07.5]}
28. Nc4 {[%clk 0:03:09.5]} 28... Ne4 {[%clk 0:04:03]} 29. Qd3 {[%clk 0:03:03.5]}
29... Re8 {[%clk 0:03:45.7]} 30. Ne5 {[%clk 0:03:00.8]} 30... Qd6 {[%clk
0:03:39.9]} 31. Qxd4 {[%clk 0:02:56.3]} 31... Bxe5 {[%clk 0:03:38.5]} 32. fxe5
{[%clk 0:02:56.2]} 32... Qxe5 {[%clk 0:03:36.5]} 33. Qa4 {[%clk 0:02:50.9]}
33... Rd8 {[%clk 0:03:31.8]} 34. Qc4 {[%clk 0:02:39.2]} 34... Qxd5 {[%clk
0:03:29.6]} 35. Qc7 {[%clk 0:02:35.2]} 35... Qd4+ {[%clk 0:03:28.1]} 36. Kh1
{[%clk 0:02:29.1]} 36... Nf2+ {[%clk 0:03:27.4]} 37. Kg1 {[%clk 0:02:27.6]}
37... Nh3+ {[%clk 0:03:27.3]} 38. Kh1 {[%clk 0:02:25.2]} 38... Qg1+ {[%clk
0:03:26.4]} 39. Rxg1 {[%clk 0:02:24.7]} 39... Nf2# {[%clk 0:03:26.3]} 0-1

[Event "Live Chess"]
[Site "Chess.com"]
[Date "2023.05.20"]
[Round "-"]
[White "LL220284LL"]
[Black "toog"]
[Result "1-0"]
[WhiteElo "2388"]
[BlackElo "2607"]
[TimeControl "300"]
[EndTime "14:51:36 PDT"]
[Termination "LL220284LL won by checkmate"]

1. b3 {[%clk 0:04:58.8]} 1... e5 {[%clk 0:04:56.4]} 2. Bb2 {[%clk 0:04:57.7]}
2... Nc6 {[%clk 0:04:55.8]} 3. e3 {[%clk 0:04:55.8]} 3... Nf6 {[%clk 0:04:49.3]}
4. Nf3 {[%clk 0:04:53.5]} 4... e4 {[%clk 0:04:47.3]} 5. Nd4 {[%clk 0:04:52.6]}
5... Bc5 {[%clk 0:04:43.1]} 6. Nxc6 {[%clk 0:04:51.3]} 6... dxc6 {[%clk
0:04:43]} 7. Be2 {[%clk 0:04:49.8]} 7... O-O {[%clk 0:04:41.2]} 8. O-O {[%clk
0:04:48.3]} 8... Re8 {[%clk 0:04:39.4]} 9. d4 {[%clk 0:04:47.4]} 9... Bd6 {[%clk
0:04:34.8]} 10. c4 {[%clk 0:04:44.9]} 10... h5 {[%clk 0:04:31.3]} 11. Nd2 {[%clk
0:04:30.8]} 11... h4 {[%clk 0:04:25.5]} 12. h3 {[%clk 0:04:29.5]} 12... Bf5
{[%clk 0:04:23.5]} 13. c5 {[%clk 0:04:24.6]} 13... Bf8 {[%clk 0:04:21.5]} 14.
Nc4 {[%clk 0:04:24.1]} 14... Nd5 {[%clk 0:04:19.2]} 15. Bg4 {[%clk 0:04:19.8]}
15... Qg5 {[%clk 0:04:11.5]} 16. Bxf5 {[%clk 0:04:17.3]} 16... Qxf5 {[%clk
0:04:09.1]} 17. a3 {[%clk 0:04:14.9]} 17... Re6 {[%clk 0:04:06]} 18. Ne5 {[%clk
0:04:06.7]} 18... Rae8 {[%clk 0:03:56.6]} 19. b4 {[%clk 0:04:04.9]} 19... f6
{[%clk 0:03:52.2]} 20. Qg4 {[%clk 0:04:02.6]} 20... Qxg4 {[%clk 0:03:48.9]} 21.
Nxg4 {[%clk 0:04:02.5]} 21... g6 {[%clk 0:03:37.5]} 22. Rfb1 {[%clk 0:03:57.5]}
22... Bg7 {[%clk 0:03:35.7]} 23. Nh2 {[%clk 0:03:55.3]} 23... f5 {[%clk
0:03:34.4]} 24. Nf1 {[%clk 0:03:54.6]} 24... g5 {[%clk 0:03:33.2]} 25. Bc1
{[%clk 0:03:52.2]} 25... f4 {[%clk 0:03:21.8]} 26. Rb3 {[%clk 0:03:49.2]} 26...
Rf8 {[%clk 0:03:14.4]} 27. Ra2 {[%clk 0:03:46.3]} 27... f3 {[%clk 0:03:07.2]}
28. gxf3 {[%clk 0:03:43.9]} 28... Rxf3 {[%clk 0:03:01.7]} 29. Kg2 {[%clk
0:03:43]} 29... g4 {[%clk 0:02:47]} 30. hxg4 {[%clk 0:03:33.9]} 30... h3+ {[%clk
0:02:46.1]} 31. Kg1 {[%clk 0:03:33.5]} 31... h2+ {[%clk 0:02:01.7]} 32. Nxh2
{[%clk 0:03:23.9]} 32... Rh3 {[%clk 0:01:59.9]} 33. Nf1 {[%clk 0:03:16.5]} 33...
Bxd4 {[%clk 0:01:54.9]} 34. Ng3 {[%clk 0:03:10.5]} 34... Be5 {[%clk 0:01:47.7]}
35. Kg2 {[%clk 0:03:08.2]} 35... Reh6 {[%clk 0:01:42.8]} 36. Nxe4 {[%clk
0:03:05.9]} 36... Rh1 {[%clk 0:00:59.8]} 37. Rc2 {[%clk 0:03:00.4]} 37... R6h2+
{[%clk 0:00:56.7]} 38. Kf3 {[%clk 0:02:58.7]} 38... Rg1 {[%clk 0:00:56.2]} 39.
b5 {[%clk 0:02:51.2]} 39... Rh3+ {[%clk 0:00:54.6]} 40. Ke2 {[%clk 0:02:49.9]}
40... Rxg4 {[%clk 0:00:52.3]} 41. bxc6 {[%clk 0:02:46]} 41... bxc6 {[%clk
0:00:49.9]} 42. Rb8+ {[%clk 0:02:44.2]} 42... Kg7 {[%clk 0:00:48.5]} 43. Nd2
{[%clk 0:02:38.8]} 43... Nc3+ {[%clk 0:00:47]} 44. Kd3 {[%clk 0:02:36.1]} 44...
Nd5 {[%clk 0:00:39.1]} 45. Bb2 {[%clk 0:02:33.6]} 45... Bxb2 {[%clk 0:00:37.1]}
46. Rcxb2 {[%clk 0:02:29]} 46... Ra4 {[%clk 0:00:37]} 47. R2b3 {[%clk
0:02:26.4]} 47... Rh2 {[%clk 0:00:33.7]} 48. Ke2 {[%clk 0:02:22.6]} 48... Nf6
{[%clk 0:00:30.4]} 49. Nf3 {[%clk 0:02:21.3]} 49... Rg2 {[%clk 0:00:28.6]} 50.
Nd4 {[%clk 0:02:20.3]} 50... Ng4 {[%clk 0:00:27.1]} 51. Kf3 {[%clk 0:02:17.9]}
51... Rxf2+ {[%clk 0:00:22.1]} 52. Kxg4 {[%clk 0:02:16.3]} 52... Rc2 {[%clk
0:00:20.9]} 53. Rc8 {[%clk 0:02:13.3]} 53... Rxc5 {[%clk 0:00:19.6]} 54. Rxc7+
{[%clk 0:02:12.4]} 54... Kf6 {[%clk 0:00:19.5]} 55. Kf3 {[%clk 0:02:10.9]} 55...
Ke5 {[%clk 0:00:18.7]} 56. Rxc6 {[%clk 0:02:09.1]} 56... Kd5 {[%clk 0:00:16.8]}
57. Rxc5+ {[%clk 0:02:06.5]} 57... Kxc5 {[%clk 0:00:16.7]} 58. Ke4 {[%clk
0:02:05.5]} 58... Ra6 {[%clk 0:00:15.1]} 59. Kd3 {[%clk 0:02:04.7]} 59... Rh6
{[%clk 0:00:13.9]} 60. Rb5+ {[%clk 0:02:03.8]} 60... Kd6 {[%clk 0:00:12.8]} 61.
Ra5 {[%clk 0:02:03.2]} 61... Kd7 {[%clk 0:00:10.8]} 62. Rxa7+ {[%clk 0:02:02.4]}
62... Kc8 {[%clk 0:00:10.7]} 63. a4 {[%clk 0:02:01.1]} 63... Kb8 {[%clk
0:00:10.6]} 64. Rf7 {[%clk 0:02:00]} 64... Ka8 {[%clk 0:00:10.4]} 65. a5 {[%clk
0:01:58.9]} 65... Rd6 {[%clk 0:00:09.8]} 66. Kc4 {[%clk 0:01:57.5]} 66... Rd8
{[%clk 0:00:08.6]} 67. Kb5 {[%clk 0:01:55.8]} 67... Rb8+ {[%clk 0:00:07.7]} 68.
Ka6 {[%clk 0:01:54.6]} 68... Rd8 {[%clk 0:00:07]} 69. Nc6 {[%clk 0:01:52.7]}
69... Rd7 {[%clk 0:00:05.5]} 70. Rf8+ {[%clk 0:01:51.8]} 70... Rd8 {[%clk
0:00:04.7]} 71. Rxd8# {[%clk 0:01:51.7]} 1-0

[Event "Live Chess"]
[Site "Chess.com"]
[Date "2023.05.20"]
[Round "-"]
[White "jimwad"]
[Black "LiamBellwood"]
[Result "0-1"]
[WhiteElo "1225"]
[BlackElo "2077"]
[TimeControl "300"]
[EndTime "14:51:40 PDT"]
[Termination "LiamBellwood won by resignation"]

1. d4 {[%clk 0:04:54.7]} 1... e6 {[%clk 0:04:59.9]} 2. e4 {[%clk 0:04:53.1]}
2... d5 {[%clk 0:04:58.8]} 3. Nc3 {[%clk 0:04:49]} 3... Nf6 {[%clk 0:04:57.7]}
4. e5 {[%clk 0:04:47.4]} 4... Ng8 {[%clk 0:04:55.4]} 5. Bg5 {[%clk 0:04:45.7]}
5... Qxg5 {[%clk 0:04:53.4]} 6. Nf3 {[%clk 0:04:42.9]} 6... Qd8 {[%clk
0:04:52.4]} 7. Qd2 {[%clk 0:04:40.2]} 7... c5 {[%clk 0:04:51.5]} 8. dxc5 {[%clk
0:04:38.4]} 8... Bxc5 {[%clk 0:04:50.2]} 9. O-O-O {[%clk 0:04:36.7]} 9... Nc6
{[%clk 0:04:48.7]} 10. Bb5 {[%clk 0:04:34.9]} 10... Bd7 {[%clk 0:04:47.7]} 11.
Nd4 {[%clk 0:04:30.2]} 11... Nxd4 {[%clk 0:04:44.3]} 12. Bxd7+ {[%clk
0:04:28.7]} 12... Qxd7 {[%clk 0:04:44.2]} 13. Qg5 {[%clk 0:04:17.2]} 13... Ne7
{[%clk 0:04:21.5]} 14. Qxg7 {[%clk 0:04:14.6]} 14... O-O-O {[%clk 0:04:20.2]}
15. Qxf7 {[%clk 0:04:03]} 15... Rdf8 {[%clk 0:04:18.8]} 16. Qh5 {[%clk
0:04:00.1]} 16... Rxf2 {[%clk 0:04:17.6]} 17. g3 {[%clk 0:03:57.2]} 17... Rxc2+
{[%clk 0:04:10.7]} 18. Kb1 {[%clk 0:03:55.5]} 18... Rf2 {[%clk 0:03:46.2]} 19.
Qg4 {[%clk 0:03:33]} 19... Nb5 {[%clk 0:03:36.7]} 20. Nxb5 {[%clk 0:03:30.1]}
20... Qxb5 {[%clk 0:03:36.6]} 21. b3 {[%clk 0:03:21.2]} 21... Qe2 {[%clk
0:03:25.3]} 22. Qxe6+ {[%clk 0:03:19.1]} 22... Kb8 {[%clk 0:03:24.3]} 0-1

[Event "Live Chess"]
[Site "Chess.com"]
[Date "2023.05.20"]
[Round "-"]
[White "GMHarry-youtube"]
[Black "raminguy"]
[Result "1-0"]
[WhiteElo "2033"]
[BlackElo "1950"]
[TimeControl "300"]
[EndTime "14:51:54 PDT"]
[Termination "GMHarry-youtube won by resignation"]

1. e4 {[%clk 0:04:59]} 1... e5 {[%clk 0:04:56.7]} 2. Nf3 {[%clk 0:04:57]} 2...
Nc6 {[%clk 0:04:56.2]} 3. Bc4 {[%clk 0:04:56]} 3... Bc5 {[%clk 0:04:55.3]} 4. c3
{[%clk 0:04:47.8]} 4... Nf6 {[%clk 0:04:53.2]} 5. O-O {[%clk 0:04:45.1]} 5...
Nxe4 {[%clk 0:04:51.5]} 6. d4 {[%clk 0:04:44]} 6... exd4 {[%clk 0:04:46.3]} 7.
cxd4 {[%clk 0:04:42.6]} 7... Bb4 {[%clk 0:04:43.8]} 8. Nc3 {[%clk 0:04:37]} 8...
Bxc3 {[%clk 0:04:41]} 9. bxc3 {[%clk 0:04:31.8]} 9... d5 {[%clk 0:04:39.7]} 10.
Re1 {[%clk 0:04:29.1]} 10... O-O {[%clk 0:04:38]} 11. Bd3 {[%clk 0:04:22]} 11...
Nxc3 {[%clk 0:04:26.4]} 12. Qc2 {[%clk 0:04:12.4]} 12... Ne4 {[%clk 0:04:23.4]}
13. Bxe4 {[%clk 0:04:11.2]} 13... dxe4 {[%clk 0:04:22.7]} 14. Qxe4 {[%clk
0:04:11.1]} 14... Bd7 {[%clk 0:04:14.9]} 15. Ng5 {[%clk 0:04:06.1]} 15... f5
{[%clk 0:03:59.5]} 16. Qd5+ {[%clk 0:04:02.8]} 16... Kh8 {[%clk 0:03:54.2]} 17.
Nf7+ {[%clk 0:04:00.8]} 17... Rxf7 {[%clk 0:03:53.8]} 18. Qxf7 {[%clk
0:03:59.8]} 1-0

[Event "Live Chess"]
[Site "Chess.com"]
[Date "2023.05.20"]
[Round "-"]
[White "KGreenGator"]
[Black "PiotrJanas"]
[Result "0-1"]
[WhiteElo "1762"]
[BlackElo "1574"]
[TimeControl "300"]
[EndTime "14:52:00 PDT"]
[Termination "PiotrJanas won by resignation"]

1. c4 {[%clk 0:04:59]} 1... e5 {[%clk 0:04:55.9]} 2. Nc3 {[%clk 0:04:58.4]} 2...
f5 {[%clk 0:04:50.7]} 3. e3 {[%clk 0:04:57.5]} 3... Nf6 {[%clk 0:04:49.1]} 4. d4
{[%clk 0:04:56.5]} 4... e4 {[%clk 0:04:40.5]} 5. Be2 {[%clk 0:04:54.7]} 5... Qe7
{[%clk 0:04:31.1]} 6. a3 {[%clk 0:04:52.2]} 6... c6 {[%clk 0:04:20.1]} 7. h3
{[%clk 0:04:49.7]} 7... d5 {[%clk 0:04:18]} 8. c5 {[%clk 0:04:48.1]} 8... Qf7
{[%clk 0:04:11]} 9. b4 {[%clk 0:04:42.4]} 9... a6 {[%clk 0:04:07]} 10. Bd2
{[%clk 0:04:39.7]} 10... Be7 {[%clk 0:04:04.4]} 11. a4 {[%clk 0:04:37.6]} 11...
O-O {[%clk 0:04:01.7]} 12. b5 {[%clk 0:04:30.5]} 12... axb5 {[%clk 0:03:55.9]}
13. axb5 {[%clk 0:04:29.5]} 13... Rxa1 {[%clk 0:03:53.3]} 14. Qxa1 {[%clk
0:04:28.2]} 14... Be6 {[%clk 0:03:47.8]} 15. bxc6 {[%clk 0:04:26.3]} 15... bxc6
{[%clk 0:03:46.6]} 16. Qb2 {[%clk 0:04:19]} 16... Nbd7 {[%clk 0:03:41.2]} 17.
Na4 {[%clk 0:04:17.3]} 17... Rb8 {[%clk 0:03:38.2]} 18. Nb6 {[%clk 0:04:13.7]}
18... Nxb6 {[%clk 0:03:34.5]} 19. cxb6 {[%clk 0:04:09.6]} 19... Bd8 {[%clk
0:03:21.6]} 20. Ba5 {[%clk 0:04:04.7]} 20... Bxb6 {[%clk 0:03:04.9]} 21. Bxb6
{[%clk 0:04:02.7]} 21... Nd7 {[%clk 0:03:04.3]} 22. Bd1 {[%clk 0:03:53.2]} 22...
Rxb6 {[%clk 0:03:02.7]} 23. Qc2 {[%clk 0:03:52.3]} 23... Qe7 {[%clk 0:02:59.2]}
24. Ne2 {[%clk 0:03:49.8]} 24... Qb4+ {[%clk 0:02:57.6]} 25. Qc3 {[%clk
0:03:45.8]} 25... Qxc3+ {[%clk 0:02:41.1]} 26. Nxc3 {[%clk 0:03:44.5]} 26... c5
{[%clk 0:02:35.9]} 27. O-O {[%clk 0:03:39.5]} 27... c4 {[%clk 0:02:32.7]} 28. f3
{[%clk 0:03:37.3]} 28... Nf6 {[%clk 0:02:28.3]} 29. fxe4 {[%clk 0:03:35.5]}
29... Nxe4 {[%clk 0:02:23.5]} 30. Nxe4 {[%clk 0:03:33.7]} 30... fxe4 {[%clk
0:02:23.4]} 31. Bg4 {[%clk 0:03:21.5]} 31... Bxg4 {[%clk 0:02:20.9]} 32. hxg4
{[%clk 0:03:20]} 32... Rb2 {[%clk 0:02:14.1]} 33. Rc1 {[%clk 0:03:12.4]} 33...
Re2 {[%clk 0:02:11.8]} 34. Rc3 {[%clk 0:03:10]} 34... Kf7 {[%clk 0:02:03.4]} 35.
Kf1 {[%clk 0:03:08.1]} 35... Rd2 {[%clk 0:01:58.2]} 36. g3 {[%clk 0:03:04]}
36... Rd3 {[%clk 0:01:53.7]} 37. Rxd3 {[%clk 0:03:01.5]} 37... exd3 {[%clk
0:01:53.6]} 38. Ke1 {[%clk 0:03:00]} 38... c3 {[%clk 0:01:50.9]} 39. Kd1 {[%clk
0:02:58.2]} 39... Kf6 {[%clk 0:01:47.3]} 40. Kc1 {[%clk 0:02:53.2]} 40... Kg5
{[%clk 0:01:45.9]} 41. e4 {[%clk 0:02:51]} 41... dxe4 {[%clk 0:01:43.5]} 42. d5
{[%clk 0:02:50.6]} 42... Kf6 {[%clk 0:01:42.5]} 43. g5+ {[%clk 0:02:48.2]} 43...
Ke5 {[%clk 0:01:41.3]} 44. g6 {[%clk 0:02:46.1]} 44... hxg6 {[%clk 0:01:38.2]}
0-1